fUST/lending_fUST_20260401
["ID","MTS","AMOUNT","RATE_DAILY","PERIOD"]
[419246032,1775043031811,-1349.64553418,6.847e-05,2]
[419246065,1775043038012,-317.96272121,6.847e-05,2]
[419246066,1775043038024,-3332.39174461,6.847e-05,2]
[419246067,1775043038033,-5000.0,6.916e-05,2]
[419246068,1775043038042,-454.4296863,6.916e-05,2]
[419246143,1775043040622,-757.90104891,6.779e-05,2]
[419246150,1775043040676,-751.38125773,6.779e-05,2]
[419246152,1775043040687,-63.5703137,6.916e-05,2]
[419246153,1775043040697,-185.04842857,6.986e-05,2]
[419246428,1775043043118,-1907.85295218,6.986e-05,2]
[419246438,1775043043226,-500.0,6.986e-05,2]
[419246439,1775043043388,-2407.09861925,6.986e-05,2]
[419246440,1775043043399,-300.0,7.056e-05,2]
[419246441,1775043043412,-1200.0,7.056e-05,2]
[419246442,1775043043422,-151.0,8.208e-05,2]
[419246443,1775043043432,-300.0,8.288e-05,2]
[419246444,1775043043443,-300.0,8.288e-05,2]
[419246446,1775043043453,-300.0,8.288e-05,2]
[419246448,1775043043463,-41.90138075,8.288e-05,2]
[419246514,1775043044228,5000.0,0.00032877,120]
[419246703,1775043046063,-258.09861925,8.288e-05,2]
[419246704,1775043046073,-269.32958176,8.288e-05,2]
[419246705,1775043046086,-30.67041824,8.288e-05,2]
[419246706,1775043046096,-300.0,8.288e-05,2]
[419246707,1775043046106,-300.0,8.288e-05,2]
[419246708,1775043046116,-300.0,8.288e-05,2]
[419246709,1775043046126,-300.0,8.288e-05,2]
[419246710,1775043046136,-300.0,8.288e-05,2]
[419246711,1775043046146,-300.0,8.288e-05,2]
[419246712,1775043046155,-300.0,8.288e-05,2]
[419246713,1775043046165,-300.0,8.288e-05,2]
[419246714,1775043046175,-300.0,8.288e-05,2]
[419246715,1775043046184,-300.0,8.288e-05,2]
[419246716,1775043046194,-1000.0,0.00013699,2]
[419246717,1775043046204,-1000.0,0.00013699,2]
[419246718,1775043046213,-379.07597878,0.00015523,2]
[419246719,1775043046223,-332.02350494,0.00015523,2]
[419246720,1775043046232,-169.72523455,0.0001634,2]
[419246721,1775043046242,-305.19991677,0.0001634,2]
[419246722,1775043046251,-189.96442759,0.0001634,2]
[419246723,1775043046261,-337.43904868,0.0001634,2]
[419246724,1775043046271,-184.32507736,0.0001634,2]
[419246725,1775043046282,-341.5940337,0.0001634,2]
[419246726,1775043046293,-607.39028763,0.0001634,2]
[419246727,1775043046303,-1079.80495578,0.0001634,2]
[419246728,1775043046313,-1687.19524341,0.0001634,2]
[419246729,1775043046323,-2429.56115051,0.0001634,2]
[419246730,1775043046333,-510.68502394,0.0001634,2]
[419246731,1775043046349,-686.84806561,0.0001634,2]
[419246732,1775043046361,-2106.06268486,0.0001634,2]
[419246733,1775043046370,-631.53959516,0.000171,2]
[419246734,1775043046380,-1754.71513363,0.0001722,2]
[419246735,1775043046389,-870.16634074,0.00017586,2]
[419246736,1775043046399,-237.92953897,0.00018049,2]
[419246737,1775043046408,-428.27317015,0.00018049,2]
[419246738,1775043046418,-761.37452471,0.00018368,2]
[419246739,1775043046427,-1189.64769486,0.00018842,2]
[419246740,1775043046437,-290.79596467,0.00018999,2]
[419246741,1775043046446,-500.0,0.00018999,2]
[419246742,1775043046456,-411.8942278,0.00018999,2]
[419246743,1775043046466,-377.89232995,0.00018999,2]
[419246744,1775043046475,-680.20619392,0.00018999,2]
[419246745,1775043046485,-1209.25545585,0.00018999,2]
[419246746,1775043046494,-1002.34620965,0.00018999,2]
[419246747,1775043047258,5000.0,0.00032877,120]
[419246753,1775043057912,2000.0,0.00032877,120]
[419246754,1775043140855,179.0,0.00032877,120]
[419246755,1775043483051,487.43820302,0.00032621,120]
[419246756,1775043485921,487.43820302,0.00032621,120]
[419246757,1775043487428,243.71910151,0.00032621,120]
[419246758,1775044137674,20000.0,0.00032876,120]
[419246759,1775044146874,50000.0,0.00032876,120]
[419246760,1775044157336,500.0,0.0003287,120]
[419246761,1775044164200,10000.0,0.00032876,120]
[419246802,1775044238248,-1000.0,0.00013699,2]
[419246803,1775044238259,-349.2911013,0.00015196,2]
[419246804,1775044238269,-378.177171,0.00015732,2]
[419246805,1775044238279,-1711.37958792,0.00015733,2]
[419246806,1775044238289,-300.0,0.00016264,2]
[419246807,1775044238298,-300.0,0.00016264,2]
[419246808,1775044238308,-300.0,0.00016264,2]
[419246809,1775044238317,-300.0,0.00016264,2]
[419246810,1775044238328,-300.0,0.00016264,2]
[419246811,1775044238337,-300.0,0.00016264,2]
[419246812,1775044238347,-300.0,0.00016264,2]
[419246813,1775044238357,-300.0,0.00016264,2]
[419246814,1775044238367,-300.0,0.00016264,2]
[419246815,1775044238377,-300.0,0.00016264,2]
[419246816,1775044238387,-300.0,0.00016264,2]
[419246817,1775044238397,-300.0,0.00016264,2]
[419246818,1775044238406,-300.0,0.00016264,2]
[419246819,1775044238416,-300.0,0.00016264,2]
[419246820,1775044238426,-300.0,0.00016264,2]
[419246821,1775044238436,-349.2911013,0.00017189,2]
[419246822,1775044238446,-231.032,0.00018522,2]
[419246823,1775044238455,-500.0,0.00018799,2]
[419246824,1775044238465,-500.0,0.00018799,2]
[419246825,1775044238475,-500.0,0.00018799,2]
[419246826,1775044238484,-567.80866712,0.00018799,2]
[419246827,1775044238494,-522.63830063,0.00018799,2]
[419246828,1775044238503,-4593.46168383,0.000188,2]
[419246833,1775044239884,283.91532981,0.00032876,120]
[419246852,1775044240921,-13744.83100353,0.00015096,2]
[419246912,1775044246541,-1053.16198437,0.00015096,2]
[419246913,1775044246551,-200.0,0.00015096,2]
[419246914,1775044246562,-2045.72451343,0.000188,2]
[419246916,1775044602731,2254.53617757,0.0003287,120]
[419246975,1775045438400,-1243.0,0.00013,2]
[419246982,1775045438455,-1267.8,0.00013,2]
[419246984,1775045438464,-409.81615989,0.00013,2]
[419246989,1775045438508,-194.18384011,0.00013,2]
[419246991,1775045438518,-1000.0,0.00013699,2]
[419246993,1775045438527,-74.7049141,0.0001425,2]
[419246996,1775045438539,-225.2950859,0.0001425,2]
[419246998,1775045438549,-300.0,0.0001425,2]
[419247000,1775045438558,-300.0,0.0001425,2]
[419247002,1775045438568,-162.33320811,0.0001425,2]
[419247004,1775045438579,-137.66679189,0.0001425,2]
[419247006,1775045438589,-300.0,0.0001425,2]
[419247008,1775045438598,-300.0,0.0001425,2]
[419247010,1775045438608,-300.0,0.0001425,2]
[419247012,1775045438617,-300.0,0.0001425,2]
[419247014,1775045438626,-300.0,0.0001425,2]
[419247016,1775045438636,-300.0,0.0001425,2]
[419247018,1775045438646,-300.0,0.0001425,2]
[419247020,1775045438655,-300.0,0.0001425,2]
[419247022,1775045438665,-300.0,0.0001425,2]
[419247024,1775045438674,-300.0,0.0001425,2]
[419247026,1775045438684,-300.0,0.0001425,2]
[419247028,1775045438694,-837.29403221,0.00015699,2]
[419247030,1775045438704,-324.02429187,0.00016085,2]
[419247032,1775045438714,-583.24372537,0.00016085,2]
[419247034,1775045438724,-1036.87773399,0.00016085,2]
[419247036,1775045438733,-1195.77491086,0.00016085,2]
[419247064,1775045441032,-424.34654849,0.00016085,2]
[419247065,1775045441042,-2332.97490147,0.00016085,2]
[419247067,1775045441051,-757.99130734,0.00016085,2]
[419247071,1775045441084,-335.63148052,0.00016085,2]
[419247249,1775045443879,-2081.81527247,0.00016085,2]
[419247250,1775045443889,-310.8108476,0.00016085,2]
[419247251,1775045443898,-559.45952569,0.00016085,2]
[419247252,1775045443907,-994.59471233,0.00016085,2]
[419247253,1775045443917,-1554.05423802,0.00016085,2]
[419247255,1775045443927,-1328.2075802,0.00016753,2]
[419247256,1775045443936,-169.5955542,0.00016753,2]
[419247257,1775045443945,-701.89393723,0.00016934,2]
[419247258,1775045443954,-1000.0,0.00017316,2]
[419247259,1775045443964,-500.0,0.00017822,2]
[419247260,1775045443973,-262.42752807,0.00017823,2]
[419247261,1775045444064,-246.82603748,0.00017823,2]
[419247262,1775045444106,-444.28686746,0.00017823,2]
[419247263,1775045444116,-789.84331992,0.00017823,2]
[419247264,1775045444125,-1234.13018738,0.00017823,2]
[419247265,1775045444135,-531.630245,0.00017823,2]
[419247266,1775045444144,-472.36955053,0.00017823,2]
[419247267,1775045444153,-340.87627049,0.00018056,2]
[419247268,1775045444163,-455.1794191,0.0001815,2]
[419247269,1775045444173,-600.0,0.00018178,2]
[419247270,1775045444183,-839.76808983,0.00018301,2]
[419247271,1775045444192,-956.93444099,0.00018375,2]
[419247272,1775045444202,-1542.77861601,0.00018456,2]
[419247282,1775046381124,311.35,0.0003287,120]
[419247283,1775046407122,3594.88,0.0003287,120]
[419247309,1775046632274,-701.7799,0.00013699,2]
[419247310,1775046632328,-298.2201,0.00013699,2]
[419247311,1775046632338,-284.7022351,0.00015823,2]
[419247312,1775046632347,-868.1777565,0.00016412,2]
[419247313,1775046632356,-583.91817943,0.00017371,7]
[419247314,1775046632366,-300.0,0.00018055,2]
[419247315,1775046632376,-300.0,0.00018055,2]
[419247316,1775046632385,-300.0,0.00018055,2]
[419247317,1775046632395,-264.53831702,0.00018055,2]
[419247322,1775046638582,-748.46168298,0.00018055,2]
[419247323,1775046638592,-1701.21678399,0.00018056,2]
[419247324,1775046638600,-55.98504498,0.00018056,2]
[419247325,1775046638611,-1256.15259538,0.00018056,2]
[419247326,1775046638621,-1889.47820213,0.00018056,2]
[419247327,1775046638631,-285.61772249,0.00018056,2]
[419247670,1775046643711,-103.95515807,0.00018056,2]
[419247672,1775046643721,-2658.15122498,0.00018056,2]
[419247674,1775046643731,-285.63237672,0.00018056,2]
[419247677,1775046643740,-151.0,0.00018056,2]
[419247679,1775046643750,-151.0,0.00018373,2]
[419247681,1775046643759,-172.52165898,0.00018373,2]
[419247683,1775046643771,-1909.34647797,0.00018373,2]
[419247863,1775046646616,-3128.10826402,0.00018373,2]
[419247865,1775046646626,-635.53588604,0.000186,2]
[419247866,1775046646635,-501.10679236,0.00018673,2]
[419247868,1775046646644,-151.0,0.00018673,2]
[419247870,1775046646654,-438.89,0.0001869,3]
[419247872,1775046646664,-219.44,0.0001869,3]
[419247874,1775046646673,-658.35,0.0001869,3]
[419247875,1775046646683,-762.04608026,0.000187,13]
[419247876,1775046646692,-1858.6220021,0.000187,13]
[419247878,1775046646702,-645.75184342,0.000187,13]
[419247879,1775046646711,-184.826,0.000187,2]
[419247881,1775046646721,-615.40944772,0.000187,2]
[419247892,1775046646833,-33254.00936421,0.000187,2]
[419248063,1775047190924,500.0,0.0001922,120]
[419248064,1775047191166,500.0,0.00021917,120]
[419248065,1775047191402,500.0,0.00021917,120]
[419248066,1775047191638,500.0,0.00021999,120]
[419248067,1775047191941,500.0,0.00021999,120]
[419248068,1775047192188,500.0,0.00021999,120]
[419248069,1775047192430,500.0,0.00021999,120]
[419248070,1775047192666,500.0,0.00021999,120]
[419248071,1775047192884,500.0,0.00021999,120]
[419248072,1775047193180,500.0,0.00021999,120]
[419248073,1775047193455,365.06076383,0.00021999,120]
[419248074,1775047513007,378.56,0.00032877,120]
[419248084,1775047832492,-537.0,8.348e-05,2]
[419248085,1775047832502,-191.590741,8.348e-05,2]
[419248086,1775047832512,-191.590741,0.00012522,2]
[419248087,1775047832522,-1000.0,0.00013699,2]
[419248088,1775047832532,-262.57788585,0.00015746,2]
[419248089,1775047832598,-414.54499915,0.00015746,2]
[419248135,1775047838743,-322.877115,0.00015746,2]
[419248137,1775047838752,-157.09354094,0.0001666,2]
[419248140,1775047838766,-191.590741,0.00016696,2]
[419248142,1775047838776,-300.0,0.00016749,2]
[419248144,1775047838787,-644.45539886,0.00017632,7]
[419248145,1775047838802,-500.0,0.00018,2]
[419248147,1775047838813,-1030.89951702,0.00018009,11]
[419248150,1775047838824,-151.0,0.00018222,2]
[419248152,1775047838834,-712.18153715,0.00018298,2]
[419248154,1775047838844,-467.0,0.00018372,2]
[419248155,1775047838855,-501.10679236,0.00018373,2]
[419248156,1775047838866,-500.0,0.00018373,2]
[419248158,1775047838879,-500.0,0.00018373,2]
[419248160,1775047838890,-514.1382781,0.00018373,2]
[419248163,1775047838914,-914.02360551,0.00018373,2]
[419248165,1775047838925,-151.97493871,0.00018373,2]
[419248166,1775047838936,-362.07273594,0.00018373,2]
[419248169,1775047838947,-500.0,0.00018398,2]
[419248172,1775047838957,-500.0,0.00018398,2]
[419248174,1775047838967,-213.01701162,0.00018398,2]
[419248175,1775047838976,-565.84681044,0.00018398,2]
[419248176,1775047838986,-500.0,0.00018398,2]
[419248177,1775047838998,-500.0,0.00018398,2]
[419248178,1775047839013,-154.88528543,0.00018398,2]
[419248179,1775047839025,-502.23125488,0.00018398,2]
[419248180,1775047839039,-500.0,0.00018398,2]
[419248181,1775047839051,-500.0,0.00018398,2]
[419248182,1775047839062,-168.26140827,0.00018398,2]
[419248183,1775047839073,-500.0,0.00018398,2]
[419248184,1775047839084,-500.0,0.00018398,2]
[419248185,1775047839095,-500.0,0.00018398,2]
[419248186,1775047839106,-500.0,0.00018398,2]
[419248187,1775047839118,-500.0,0.00018398,2]
[419248188,1775047839130,-500.0,0.00018398,2]
[419248189,1775047839141,-500.0,0.00018398,2]
[419248190,1775047839151,-500.0,0.00018398,2]
[419248191,1775047839162,-500.0,0.00018398,2]
[419248192,1775047839172,-500.0,0.00018398,2]
[419248193,1775047839182,-500.0,0.00018398,2]
[419248194,1775047839192,-500.0,0.00018398,2]
[419248195,1775047839202,-500.0,0.00018398,2]
[419248196,1775047839211,-500.0,0.00018398,2]
[419248197,1775047839221,-500.0,0.00018398,2]
[419248198,1775047839231,-207.36081411,0.00018398,2]
[419248199,1775047839241,-500.0,0.00018398,2]
[419248200,1775047839251,-500.0,0.00018398,2]
[419248201,1775047839260,-500.0,0.00018398,2]
[419248202,1775047839270,-500.0,0.00018398,2]
[419248203,1775047839280,-500.0,0.00018398,2]
[419248204,1775047839290,-500.0,0.00018398,2]
[419248205,1775047839300,-500.0,0.00018398,2]
[419248206,1775047839311,-500.0,0.00018398,2]
[419248207,1775047839322,-500.0,0.00018398,2]
[419248208,1775047839333,-172.76674589,0.00018398,2]
[419248209,1775047839343,-500.0,0.00018398,2]
[419248210,1775047839353,-500.0,0.00018398,2]
[419248211,1775047839362,-500.0,0.00018398,2]
[419248212,1775047839372,-500.0,0.00018398,2]
[419248213,1775047839382,-500.0,0.00018398,2]
[419248214,1775047839393,-500.0,0.00018398,2]
[419248215,1775047839404,-500.0,0.00018398,2]
[419248216,1775047839414,-500.0,0.00018398,2]
[419248217,1775047839424,-457.06072223,0.00018398,2]
[419248218,1775047839434,-500.0,0.00018398,2]
[419248219,1775047839444,-500.0,0.00018398,2]
[419248220,1775047839454,-500.0,0.00018398,2]
[419248221,1775047839464,-500.0,0.00018398,2]
[419248222,1775047839473,-500.0,0.00018398,2]
[419248223,1775047839482,-500.0,0.00018398,2]
[419248224,1775047839492,-500.0,0.00018398,2]
[419248225,1775047839502,-500.0,0.00018398,2]
[419248226,1775047839511,-500.0,0.00018398,2]
[419248227,1775047839522,-19616.89213279,0.00018399,2]
[419248228,1775047839531,-122581.36625894,0.00018399,2]
[419248229,1775047839544,-1302.88396548,0.00018399,2]
[419248255,1775047841399,-6423.94677741,0.00018399,2]
[419248257,1775047841411,-8555.88211101,0.00018399,2]
[419248263,1775047841453,-671.77936835,0.00018399,2]
[419248265,1775047841464,-684.77,0.00018399,2]
[419248523,1775047844144,-41400.0000004,0.00018399,2]
[419248525,1775047844157,-49194.21934452,0.00018399,2]
[419248531,1775047844199,-1563.83098617,0.00018399,2]
[419248804,1775047846948,-147867.16700631,0.00018399,2]
[419248805,1775047847003,-2530.08339878,0.00018399,2]
[419248808,1775047847014,-1486.46262522,0.00018399,2]
[419248829,1775047861053,500.0,0.0003287,120]
[419248830,1775047973313,157.0,0.000328,120]
[419248831,1775047980480,157.0,0.000328,120]
[419248833,1775048485095,-799.33,0.00013699,2]
[419248835,1775048659032,1030.79034618,0.00032876,120]
[419248836,1775048782251,716.91888707,0.00032877,120]
[419248855,1775049032669,-367.01506545,0.00013699,2]
[419248867,1775049038016,-632.98493455,0.00013699,2]
[419248868,1775049038026,-615.0,0.00013699,2]
[419248869,1775049038036,-3886.1380108,0.00017189,2]
[419248870,1775049038046,-324.7886221,0.000174,2]
[419248871,1775049038055,-236.0,0.00017592,2]
[419248872,1775049038065,-161.0,0.00017592,2]
[419248873,1775049038075,-649.80151996,0.00017593,7]
[419248874,1775049038085,-712.28131805,0.00017593,7]
[419248875,1775049038095,-1027.18606228,0.00017811,2]
[419248876,1775049038227,-2575.24377384,0.00017925,2]
[419248877,1775049038236,-151.97493871,0.00018122,2]
[419248878,1775049038246,-500.0,0.00018173,2]
[419248879,1775049038256,-500.0,0.00018173,2]
[419248880,1775049038266,-500.0,0.00018173,2]
[419248881,1775049038276,-206.93430758,0.00018173,2]
[419248882,1775049038285,-877.78,0.00018189,3]
[419248883,1775049038294,-438.89,0.00018189,3]
[419248884,1775049038303,-219.45,0.00018189,3]
[419248885,1775049038313,-658.36,0.00018189,3]
[419248886,1775049038322,-500.0,0.00018198,2]
[419248887,1775049038332,-500.0,0.00018198,2]
[419248888,1775049038341,-218.77493926,0.00018198,2]
[419248889,1775049038351,-246.09276731,0.00018198,2]
[419248890,1775049038360,-561.62132497,0.00018198,2]
[419248891,1775049038370,-500.0,0.00018198,2]
[419248892,1775049038379,-500.0,0.00018198,2]
[419248893,1775049038388,-500.0,0.00018198,2]
[419248894,1775049038398,-517.77599343,0.00018198,2]
[419248895,1775049038408,-500.0,0.00018198,2]
[419248896,1775049038418,-500.0,0.00018198,2]
[419248897,1775049038427,-500.0,0.00018198,2]
[419248898,1775049038436,-500.0,0.00018198,2]
[419248899,1775049038445,-500.0,0.00018198,2]
[419248900,1775049038455,-500.0,0.00018198,2]
[419248901,1775049038464,-500.0,0.00018198,2]
[419248902,1775049038473,-500.0,0.00018198,2]
[419248903,1775049038482,-236.16548906,0.00018198,2]
[419248904,1775049038492,-500.0,0.00018198,2]
[419248905,1775049038502,-500.0,0.00018198,2]
[419248906,1775049038511,-186.36797479,0.00018198,2]
[419248907,1775049038520,-500.0,0.00018198,2]
[419248908,1775049038531,-500.0,0.00018198,2]
[419248909,1775049038540,-93621.25459068,0.00018199,2]
[419248910,1775049038557,-19787.20838559,0.00018199,2]
[419248911,1775049038568,-1520.08874999,0.00018199,2]
[419248912,1775049038580,-5131.64912051,0.00018199,2]
[419248913,1775049038591,-2849.8060003,0.00018199,2]
[419249446,1775049046102,-16415.05310804,0.00018199,2]
[419249548,1775049711282,500.0,0.00032876,120]
[419249550,1775049993775,4624.35753004,0.00032877,120]
[419249577,1775050231961,-1515.33839127,0.00013533,2]
[419249578,1775050231971,-612.0,0.00013533,2]
[419249579,1775050231981,-1000.0,0.00013699,2]
[419249580,1775050231993,-3689.49353197,0.00013733,2]
[419249581,1775050232003,-300.0,0.00013971,2]
[419249582,1775050232013,-300.0,0.00013972,2]
[419249583,1775050232022,-300.0,0.00013972,2]
[419249585,1775050232032,-300.0,0.00013972,2]
[419249586,1775050232041,-300.0,0.00013972,2]
[419249587,1775050232051,-300.0,0.00013972,2]
[419249588,1775050232061,-300.0,0.00013972,2]
[419249589,1775050232070,-300.0,0.00013972,2]
[419249590,1775050232080,-300.0,0.00013972,2]
[419249591,1775050232089,-300.0,0.00013972,2]
[419249592,1775050232099,-300.0,0.00013972,2]
[419249593,1775050232108,-300.0,0.00013972,2]
[419249594,1775050232118,-300.0,0.00013972,2]
[419249595,1775050232128,-300.0,0.00013972,2]
[419249596,1775050232137,-300.0,0.00013972,2]
[419249597,1775050232147,-113.5139445,0.00013972,2]
[419249598,1775050232160,-186.4860555,0.00013972,2]
[419249599,1775050232170,-293.39600589,0.00014189,2]
[419249600,1775050232194,-423.92082829,0.00014189,2]
[419249607,1775050240278,-4071.22273985,0.00014189,2]
[419249608,1775050240289,-600.0,0.0001425,2]
[419249609,1775050240301,-720.0,0.00015675,2]
[419249610,1775050240312,-405.80224731,0.00015774,2]
[419249611,1775050240459,-1022.3596363,0.00015774,2]
[419249612,1775050240470,-864.0,0.00017243,2]
[419249613,1775050240480,-623.15884505,0.00017378,2]
[419249614,1775050240490,-454.6376364,0.000174,2]
[419249615,1775050240499,-500.0,0.0001745,2]
[419249616,1775050240509,-500.0,0.0001745,2]
[419249618,1775050240519,-214.02561429,0.0001745,2]
[419249620,1775050240530,-500.0,0.0001745,2]
[419249622,1775050240541,-381.17042381,0.0001745,2]
[419249624,1775050240550,-160.0,0.00017478,2]
[419249626,1775050240560,-2401.93664621,0.00017478,30]
[419249628,1775050240572,-23088.75522023,0.00017478,30]
[419249629,1775050240581,-187.37421942,0.00017478,2]
[419249630,1775050240591,-500.0,0.00017478,2]
[419249631,1775050240601,-500.0,0.00017478,2]
[419249632,1775050240611,-254.10985815,0.00017478,2]
[419249633,1775050240620,-251.32843873,0.00017478,2]
[419249634,1775050240630,-452.39118971,0.00017478,2]
[419249635,1775050240639,-804.25100392,0.00017478,2]
[419249636,1775050240648,-1255.38555144,0.00017478,2]
[419249637,1775050240658,-275.49420262,0.00017478,2]
[419249638,1775050240668,-495.88956471,0.00017478,2]
[419249639,1775050240678,-881.58144837,0.00017478,2]
[419249640,1775050240687,-1376.09354207,0.00017478,2]
[419249641,1775050240697,-25490.69186644,0.00017479,30]
[419249642,1775050240707,-19134.81664949,0.0001748,30]
[419249643,1775050240735,-523.75236559,0.0001748,30]
[419249644,1775050240747,-2586.27522381,0.0001748,30]
[419249645,1775050240758,-3245.84762755,0.0001748,30]
[419249646,1775050240768,-500.0,0.00017544,2]
[419249648,1775050240777,-4749.21683468,0.00017556,2]
[419249650,1775050240787,-500.0,0.00017559,2]
[419249652,1775050240796,-501.0078813,0.00017559,2]
[419249654,1775050240806,-500.0,0.00017559,2]
[419249656,1775050240816,-500.11250898,0.00017559,2]
[419249658,1775050240825,-4749.21683467,0.00017642,2]
[419249660,1775050240835,-1411.98662527,0.00017656,30]
[419249663,1775050240846,-1258.43671265,0.00017656,30]
[419249665,1775050240857,-7909.01872154,0.00017656,30]
[419249895,1775050243376,-813.5,0.00017656,30]
[419249897,1775050243388,-999.9375291,0.00017656,30]
[419249914,1775050243529,-285.0,0.00017656,30]
[419250138,1775050246355,-11884.971555,0.00017656,30]
[419250139,1775050246367,-927.84072288,0.00017656,30]
[419250140,1775050246376,-151.0,0.00017656,2]
[419250141,1775050246384,-151.0,0.00017656,2]
[419250142,1775050246394,-500.0,0.00017726,2]
[419250143,1775050246403,-216.04463915,0.00017726,2]
[419250144,1775050246412,-500.0,0.00017726,2]
[419250145,1775050246421,-522.26493711,0.00017726,2]
[419250146,1775050246431,-500.0,0.00017726,2]
[419250147,1775050246440,-406.97933677,0.00017726,2]
[419250148,1775050246450,-500.0,0.00017726,2]
[419250149,1775050246459,-4749.21683467,0.00017728,2]
[419250150,1775050246468,-1303.0,0.000178,2]
[419250151,1775050246477,-210.43526586,0.00017803,3]
[419250152,1775050246489,-216.26473414,0.00017803,3]
[419250153,1775050246499,-213.35,0.00017803,3]
[419250154,1775050246508,-213.35,0.00017803,3]
[419250155,1775050246518,-4749.21683467,0.00017813,2]
[419250156,1775050246528,-2773.56790519,0.00017852,2]
[419250157,1775050246539,-197.4649555,0.00017863,2]
[419250158,1775050246548,-512.04,0.00017889,3]
[419250159,1775050246558,-4749.21683467,0.00017899,2]
[419250160,1775050246567,-500.0,0.00017973,2]
[419250161,1775050246576,-504.30869842,0.00017973,2]
[419250162,1775050246586,-156.587,0.00017988,2]
[419250163,1775050246595,-650.95793421,0.00017998,2]
[419250164,1775050246604,-151.0,0.00017999,2]
[419250165,1775050246613,-151.363365,0.00017999,2]
[419250166,1775050246623,-500.0,0.00018098,2]
[419250167,1775050246633,-500.0,0.00018098,2]
[419250168,1775050246642,-500.0,0.00018098,2]
[419250169,1775050246652,-500.0,0.00018098,2]
[419250170,1775050246661,-500.0,0.00018098,2]
[419250171,1775050246671,-500.0,0.00018098,2]
[419250172,1775050246680,-500.0,0.00018098,2]
[419250173,1775050246690,-500.0,0.00018098,2]
[419250174,1775050246699,-500.0,0.00018098,2]
[419250175,1775050246708,-487.0,0.00018099,2]
[419250176,1775050246717,-487.0,0.00018099,2]
[419250177,1775050246727,-487.0,0.00018099,2]
[419250178,1775050246736,-487.0,0.00018099,2]
[419250179,1775050246746,-487.0,0.00018099,2]
[419250180,1775050246755,-487.0,0.00018099,2]
[419250181,1775050246764,-487.0,0.00018099,2]
[419250182,1775050246773,-487.0,0.00018099,2]
[419250183,1775050246783,-487.0,0.00018099,2]
[419250184,1775050246792,-487.0,0.00018099,2]
[419250185,1775050246801,-487.0,0.00018099,2]
[419250186,1775050246811,-487.0,0.00018099,2]
[419250187,1775050246820,-932.33,0.00018099,2]
[419250188,1775050246830,-157.0,0.000183,2]
[419250189,1775050246838,-157.0,0.000183,2]
[419250190,1775050246848,-315.28643202,0.00018398,2]
[419250191,1775050246857,-499.999999,0.00018456,2]
[419250192,1775050246866,-210.03987907,0.00018521,2]
[419250193,1775050246875,-687.67108219,0.00018674,2]
[419250194,1775050246885,-250.0,0.00018712,3]
[419250195,1775050246894,-5863.64867267,0.00018737,13]
[419250196,1775050246904,-1000.0,0.00018967,2]
[419250197,1775050246913,-250.0,0.00018986,2]
[419250198,1775050246923,-46566.58276706,0.00019,2]
[419250235,1775051433057,-2702.07484287,0.00012389,2]
[419250241,1775051433111,-324.64042675,0.00012389,2]
[419250243,1775051433123,-413.54999995,0.00012389,2]
[419250404,1775051438426,-1559.73473043,0.00012389,2]
[419250406,1775051438435,-595.0,0.00012389,2]
[419250408,1775051438445,-4234.33700759,0.00012514,2]
[419250890,1775051446565,-492.22153583,0.00013562,2]
[419250891,1775051446619,-4507.77846417,0.00013562,2]
[419250892,1775051446628,-1000.0,0.00013699,2]
[419250893,1775051446638,-357.18571931,0.00015,2]
[419250894,1775051446647,-169.71259177,0.00018398,2]
[419250895,1775051446656,-291.48326958,0.00018398,2]